{"text_format":"3","workbook":"xlsx","n_sheets":3,"sheets":["Riepilogo","Acquistare un'auto","Carpool"],"not_rendered":{"charts":1,"defined_names":33},"read":"whole","date_system":"1900"}

{"sheet":"Riepilogo","index":0,"n_rows":16,"n_cols":4,"rows_kept":16}
[null,"Acquistare un'auto o usare il carpool"]
[null,"Media dei viaggi"]
[null,"Media dei viaggi giornaliera",2]
[null,"Tempo medio per viaggio",20,"min"]
[null,"Distanza media per viaggio",{"v":10,"d":"10.00"},"km"]
[null,"Chilometraggio annuo",{"$f":"IFERROR(AverageTripsPerDay*AveDistancePerTrip*365,\"\")","v":{"v":7300,"d":"7,300"}},"km"]
[null,"Costi in termini di tempo"]
[null,"Tariffa oraria",{"v":20,"d":"€ 20.00"}]
[null,"Riepilogo costi annui"]
[" ","Colonna1","Acquistare un'auto","Carpool"]
[null,"Costi di acquisto",{"$f":"CostiDiAcquistoAnnui","v":{"v":7187.314844765674,"d":"€ 7,187.31"}},"-"]
[null,"Costi di utilizzo dell'auto",{"$f":"CostiDiUtilizzoAnnui","v":{"v":2990,"d":"€ 2,990.00"}},"-"]
[null,"Costi per carburante",{"$f":"CostiAnnuiPerCarburante","v":{"v":617.6923076923076,"d":"€ 617.69"}},"-"]
[null,"Pedaggi","-",{"$f":"TariffaAnnua","v":{"v":12340.65,"d":"€ 12,340.65"}}]
[null,"Costi in termini di tempo",{"$f":"AnnualCostOfTime_BuyCar","v":{"v":7300,"d":"€ 7,300.00"}},{"$f":"AnnualCostOfTime_Ridesharing","v":{"v":2190,"d":"€ 2,190.00"}}]
[null,"Totale costi annui",{"$f":"SUBTOTAL(109,Tabella7[Acquistare un''auto])","v":{"v":18095.007152457983,"d":"€ 18,095.01"}},{"$f":"SUBTOTAL(109,Tabella7[Carpool])","v":{"v":14530.65,"d":"€ 14,530.65"}}]

{"sheet":"Acquistare un'auto","index":1,"n_rows":28,"n_cols":4,"rows_kept":28}
[null,"Acquistare un'auto"]
[null,"Costi di acquisto"]
[]
[null,"Prezzo dell'auto",{"v":30000,"d":"€ 30,000.00"}]
[null,"Imposta sulle vendite",{"v":0.0575,"d":"€ 0.06"}]
[null,"Commissioni",{"v":220,"d":"€ 220.00"}]
[null,"Acconto",{"v":3000,"d":"€ 3,000.00"},"mesi"]
[null,"Durata del prestito",{"v":60,"d":"€ 60.00"}]
[null,"Tasso di interesse",{"v":0.045,"d":"€ 0.05"}]
[null,"Costi di acquisto annui",{"$f":"IFERROR(-PMT(TassoDiInteresse,DurataDelPrestito/12,PriceOfCar*(1+ImpostaSulleVendite)-Acconto)+(Commissioni+Acconto)/(DurataDelPrestito/12),\"\")","v":{"v":7187.314844765674,"d":"€ 7,187.31"}}]
[null,{"$f":"IF(CostiDiAcquistoAnnui=\"\",\"\",\"Per le condizioni di prestito di \" & TEXT(DurataDelPrestito/12,\"0,0\") & \" anni\")","v":"Per le condizioni di prestito di 5,0 anni"}]
[null,"Costi di utilizzo dell'auto"]
[null,"Manutenzione e riparazioni",{"v":1000,"d":"€ 1,000.00"},"per anno"]
[null,"Assicurazione",{"v":815,"d":"€ 815.00"},"per anno"]
[null,"Immatricolazione e imposte",{"v":75,"d":"€ 75.00"},"per anno"]
[null,"Parcheggio",{"v":500,"d":"€ 500.00"},"per anno"]
[null,"Imposta sugli immobili per garage",{"v":500,"d":"€ 500.00"},"per anno"]
[null,"Altre spese per garage",{"v":100,"d":"€ 100.00"},"per anno"]
[null,"Costi di utilizzo annui",{"$f":"SUBTOTAL(109,Tabella3[Colonna3])","v":{"v":2990,"d":"€ 2,990.00"}}]
[null,"Costi per carburante"]
[null,"Costo del carburante",{"v":3.3,"d":"€ 3.30"},"per litro"]
[null,"Consumo di carburante",39,"km/litro"]
[null,"Costi annui per carburante",{"$f":"IFERROR(TotalMileage/ConsumoDiCarburante*Pedaggi,\"\")","v":{"v":617.6923076923076,"d":"€ 617.69"}}]
[null,{"$f":"IF(CostiAnnuiPerCarburante=\"\",\"\",\"In base al chilometraggio totale annuale di \" & TEXT(TotalMileage,\"#.##\"))","v":"In base al chilometraggio totale annuale di 7.300"}]
[null,"Costi in termini di tempo"]
[null,"Tempo medio per parcheggio",10,"min"]
[null,"Costi annui in termini di tempo",{"$f":"IFERROR((AveTimePerTrip+AveParkingTime)*AverageTripsPerDay/60*TariffaOraria_*365,\"\")","v":{"v":7300,"d":"€ 7,300.00"}}]
[null,{"$f":"IF(AnnualCostOfTime_BuyCar=\"\",\"\",\"In base a \" & AverageTripsPerDay & \" viaggi al giorno, \" & AveTimePerTrip + AveParkingTime & \" minuti per viaggio, e tariffa di \" & TEXT(TariffaOraria_,\"€ #.##0,00\") & \" all'ora\")","v":"In base a 2 viaggi al giorno, 30 minuti per viaggio, e tariffa di € 20,00 all'ora"}]

{"sheet":"Carpool","index":2,"n_rows":14,"n_cols":4,"rows_kept":14}
[null,"Carpool"]
[null,"Tariffa carpool"]
[null,"Tariffa base",{"v":2.3,"d":"€ 2.30"},"per corsa"]
[null,"Tariffa chilometrica",{"v":1,"d":"€ 1.00"},"per km"]
[null,"Tariffa oraria",{"v":0.12,"d":"€ 0.12"},"per min"]
[null,"Moltiplicatore rincari medi",{"v":2.5,"d":"2.50"}]
[null,"% corse durante periodo di rincari",{"v":0.1,"d":"10%"}]
[null,"Tariffa annua",{"$f":"IFERROR((TariffaBase+TariffaChilometrica*AveDistancePerTrip+TariffaOraria*AveTimePerTrip)*AverageTripsPerDay*365*((1-PercentRideDuringSurge)+AveSurgeMultiplier*PercentRideDuringSurge),\"\")","v":{"v":12340.65,"d":"€ 12,340.65"}}]
[null,{"$f":"IF(TariffaAnnua=\"\",\"\",\"In base a \" & AverageTripsPerDay & \" viaggi al giorno, \" & AveTimePerTrip & \" minuti e viaggio di \" & AveDistancePerTrip & \" miglia\")","v":"In base a 2 viaggi al giorno, 20 minuti e viaggio di 10 miglia"}]
[null,"Costi in termini di tempo"]
[null,"Tempo di attesa medio per viaggio",{"v":5,"d":"€ 5.00"},"min"]
[null,"Tempo produttivo durante la corsa",{"v":0.8,"d":"€ 0.80"}]
[null,"Costi annui in termini di tempo",{"$f":"IFERROR((AveWaitTime+AveTimePerTrip*(1-ProductivePercent))*AverageTripsPerDay/60*TariffaOraria_*365,\"\")","v":{"v":2190,"d":"€ 2,190.00"}}]
[null,{"$f":"IF(AnnualCostOfTime_Ridesharing=\"\",\"\",\"In base a \" & AverageTripsPerDay & \" viaggi al giorno, \" & AveTimePerTrip & \" minuti per viaggio, e tariffa di \" & TEXT(TariffaOraria_,\"€ #.##0,00\") & \" all'ora\")","v":"In base a 2 viaggi al giorno, 20 minuti per viaggio, e tariffa di € 20,00 all'ora"}]